fUSD/lending_fUSD_20260217
["ID","MTS","AMOUNT","RATE_DAILY","PERIOD"]
[405852201,1771361449401,-1512.37454404,0.00014968,2]
[405852202,1771361449411,-1500.0,0.00014968,2]
[405852203,1771361449421,-1501.26419244,0.00014968,2]
[405852204,1771361449432,-505.49608217,0.00014968,2]
[405852205,1771361449442,-1500.0,0.00014968,2]
[405852206,1771361449452,-1500.0,0.00014968,2]
[405852207,1771361449463,-1500.0,0.00014968,2]
[405852208,1771361449475,-803.51620924,0.00014968,2]
[405852209,1771361449484,-446.50731055,0.00015,5]
[405852210,1771361449498,-157.20584844,0.00015,5]
[405852211,1771361449509,-250.0,0.00015,2]
[405852212,1771361449520,-1000.0,0.00015029,2]
[405852213,1771361449531,-150.0,0.00015068,12]
[405852214,1771361449542,-150.0,0.00015068,12]
[405852215,1771361449553,-150.0,0.00015068,12]
[405852216,1771361449563,-220.0,0.00015068,12]
[405852217,1771361449574,-1009.20002581,0.00015186,2]
[405852218,1771361449584,-500.0,0.00015239,2]
[405852219,1771361449594,-1000.0,0.00015335,2]
[405852220,1771361449604,-1000.0,0.00015343,2]
[405852221,1771361449614,-1000.0,0.00015411,2]
[405852222,1771361449624,-1000.0,0.0001542,7]
[405852223,1771361449635,-500.0,0.00015445,2]
[405852224,1771361449648,-500.0,0.00015445,2]
[405852225,1771361449658,-500.0,0.00015445,2]
[405852226,1771361449670,-150.0,0.00015445,2]
[405852227,1771361449681,-3500.0,0.0001546,2]
[405852228,1771361449692,-3500.0,0.0001546,2]
[405852229,1771361449703,-500.0,0.000155,2]
[405852230,1771361449715,-500.0,0.000155,2]
[405852231,1771361449724,-649.65624143,0.000155,2]
[405852232,1771361449734,-205.12968692,0.000155,2]
[405852233,1771361449748,-500.0,0.00015516,2]
[405852234,1771361449759,-360.43974274,0.00015516,2]
[405852235,1771361449770,-2000.0,0.00015516,2]
[405852236,1771361449780,-1120.78233815,0.00015516,2]
[405852237,1771361449790,-2000.0,0.00015516,2]
[405852238,1771361449801,-1219.64567907,0.00015516,2]
[405852239,1771361449812,-2000.0,0.00015516,2]
[405852240,1771361449823,-2000.0,0.00015516,2]
[405852241,1771361449834,-1508.47777759,0.00015516,2]
[405852242,1771361449843,-2000.0,0.00015516,2]
[405852243,1771361449854,-2000.0,0.00015516,2]
[405852244,1771361449864,-1929.20363046,0.00015516,2]
[405852245,1771361449873,-2000.0,0.00015516,2]
[405852246,1771361449884,-220.15883999,0.00015555,2]
[405852247,1771361449895,-500.0,0.00015555,2]
[405852248,1771361449904,-1000.0,0.00015556,2]
[405852249,1771361449916,-1000.0,0.00015575,2]
[405852250,1771361449926,-500.0,0.00015609,2]
[405852251,1771361449936,-242.545381,0.00015616,7]
[405852252,1771361449945,-500.0,0.00015664,2]
[405852253,1771361449955,-1000.0,0.00015689,2]
[405852254,1771361449965,-1000.0,0.00015704,2]
[405852255,1771361449975,-500.0,0.00015719,2]
[405852256,1771361449985,-177.3195449,0.00015721,2]
[405852257,1771361449995,-150.0,0.00015764,2]
[405852258,1771361450004,-500.0,0.00015764,2]
[405852259,1771361450014,-500.0,0.00015764,2]
[405852260,1771361450023,-150.0,0.00015764,2]
[405852261,1771361450033,-150.0,0.00015764,2]
[405852262,1771361450043,-150.0,0.00015764,2]
[405852263,1771361450052,-150.0,0.00015764,2]
[405852264,1771361450062,-382.17209928,0.00015774,2]
[405852265,1771361450072,-1000.0,0.00015787,2]
[405852266,1771361450082,-150.0,0.00015819,2]
[405852267,1771361450092,-500.0,0.00015819,2]
[405852268,1771361450102,-500.0,0.00015819,2]
[405852269,1771361450111,-244.28993987,0.00015819,2]
[405852270,1771361450121,-150.0,0.00015819,2]
[405852271,1771361450131,-150.0,0.00015819,2]
[405852272,1771361450140,-150.0,0.00015819,2]
[405852273,1771361450151,-150.0,0.00015874,2]
[405852274,1771361450160,-152.12850518,0.00015874,2]
[405852275,1771361450171,-500.0,0.00015874,2]
[405852276,1771361450180,-150.0,0.00015874,2]
[405852277,1771361450190,-200.36674187,0.00015874,2]
[405852278,1771361450200,-200.18645604,0.00015874,2]
[405852279,1771361450210,-150.0,0.000159,2]
[405852280,1771361450219,-158.13963895,0.000159,2]
[405852281,1771361450230,-150.0,0.000159,2]
[405852282,1771361450240,-150.0,0.000159,2]
[405852283,1771361450254,-150.0,0.000159,2]
[405852284,1771361450264,-150.0,0.000159,2]
[405852285,1771361450274,-1000.0,0.00015926,2]
[405852286,1771361450285,-295.69274942,0.00015928,2]
[405852287,1771361450294,-500.0,0.00015928,2]
[405852288,1771361450304,-200.89245722,0.00015928,2]
[405852289,1771361450314,-1000.0,0.00015959,2]
[405852290,1771361450325,-5000.0,0.0001596,2]
[405852291,1771361450334,-1000.0,0.00015961,2]
[405852292,1771361450345,-500.0,0.00015983,2]
[405852293,1771361450358,-276.734435,0.00016,2]
[405852294,1771361450368,-1494.73225771,0.00016008,2]
[405852295,1771361450379,-857.65528936,0.00016008,2]
[405852296,1771361450390,-500.0,0.00016038,2]
[405852297,1771361450399,-1000.0,0.00016059,2]
[405852298,1771361450409,-2500.0,0.00016064,2]
[405852299,1771361450420,-960.3517219,0.00016064,2]
[405852300,1771361450431,-1007.7222609,0.00016064,2]
[405852301,1771361450441,-1787.66016397,0.00016064,2]
[405852302,1771361450451,-2500.0,0.00016064,2]
[405852303,1771361450463,-2500.0,0.00016064,2]
[405852304,1771361450473,-1510.33829166,0.00016064,2]
[405852305,1771361450486,-1500.0,0.00016082,2]
[405852306,1771361450496,-630.25617345,0.00016093,2]
[405852307,1771361450508,-1000.0,0.00016096,2]
[405852308,1771361450519,-9999.99,0.00016116,2]
[405852309,1771361450529,-1000.0,0.00016136,2]
[405852310,1771361450539,-1000.0,0.0001619,2]
[405852311,1771361450549,-15296.93137855,0.00016194,2]
[405852312,1771361450559,-1000.0,0.00016196,2]
[405852313,1771361450569,-150.0,0.000162,2]
[405852314,1771361450579,-1000.0,0.00016219,2]
[405852315,1771361450589,-1000.0,0.00016221,2]
[405852316,1771361450598,-5019.02576734,0.00016286,2]
[405852317,1771361450608,-1000.0,0.00016349,2]
[405852318,1771361450618,-500.0,0.00016356,2]
[405852319,1771361450627,-500.0,0.00016356,2]
[405852320,1771361450637,-237.17,0.00016363,2]
[405852321,1771361450648,-1000.0,0.00016364,2]
[405852322,1771361450658,-3354.94878458,0.00016407,2]
[405852323,1771361450669,-2789.9,0.00016438,2]
[405852324,1771361450681,-887.51,0.00016438,2]
[405852325,1771361450691,-341.11,0.00016438,2]
[405852326,1771361450700,-237.17,0.00016459,2]
[405852327,1771361450711,-215.37,0.00016462,2]
[405852328,1771361450722,-1000.0,0.00016477,2]
[405852329,1771361450731,-1000.0,0.00016498,2]
[405852330,1771361450743,-150.0,0.000165,2]
[405852331,1771361450754,-2000.0,0.000165,2]
[405852332,1771361451034,-341.11,0.00016527,2]
[405852333,1771361451044,-1000.0,0.00016538,2]
[405852334,1771361451054,-237.17,0.00016555,2]
[405852335,1771361451064,-1000.0,0.00016578,2]
[405852336,1771361451074,-215.36125356,0.00016594,2]
[405852337,1771361451087,-1035.74923491,0.00016612,2]
[405852338,1771361451098,-457.49810709,0.00016612,2]
[405852339,1771361451109,-3000.0,0.00016612,2]
[405852340,1771361451119,-341.11,0.00016616,2]
[405852341,1771361451129,-1000.0,0.0001666,2]
[405852342,1771361451140,-199.23,0.00016712,2]
[405852343,1771361451150,-1000.0,0.00016715,2]
[405852344,1771361451160,-2835.0,0.0001672,2]
[405852345,1771361451169,-1088.37215301,0.00016725,2]
[405852346,1771361451179,-189.18339057,0.00016739,2]
[405852347,1771361451189,-1000.0,0.00016748,2]
[405852348,1771361451199,-150.0,0.000168,2]
[405852349,1771361451208,-1000.0,0.00016813,2]
[405852350,1771361451218,-1000.0,0.00016822,2]
[405852351,1771361451227,-1000.0,0.00016831,2]
[405852352,1771361451237,-162.702,0.00016898,2]
[405852353,1771361451246,-1164.0,0.00016898,2]
[405852354,1771361451256,-3540.659,0.00016898,2]
[405852355,1771361451266,-1338.0,0.00016898,2]
[405852356,1771361451276,-619.543,0.00016898,2]
[405852357,1771361451286,-150.248,0.00016898,2]
[405852358,1771361451296,-1275.0,0.00016898,2]
[405852359,1771361451306,-919.0,0.00016898,2]
[405852360,1771361451317,-5973.0,0.00016898,2]
[405852361,1771361451327,-1000.0,0.00016933,2]
[405852362,1771361451337,-500.0,0.00016966,2]
[405852363,1771361451346,-500.0,0.00016966,2]
[405852364,1771361451356,-500.0,0.00016966,2]
[405852365,1771361451365,-500.0,0.00016966,2]
[405852366,1771361451376,-500.0,0.00016966,2]
[405852367,1771361451385,-500.0,0.00016966,2]
[405852368,1771361451398,-500.0,0.00016966,2]
[405852369,1771361451409,-500.0,0.00016966,2]
[405852370,1771361451419,-500.0,0.00016966,2]
[405852371,1771361451428,-500.0,0.00016966,2]
[405852372,1771361451438,-500.0,0.00016966,2]
[405852373,1771361451449,-500.0,0.00016966,2]
[405852374,1771361451459,-500.0,0.00016966,2]
[405852375,1771361451469,-500.0,0.00016966,2]
[405852376,1771361451478,-500.0,0.00016966,2]
[405852377,1771361451487,-500.0,0.00016966,2]
[405852378,1771361451497,-500.0,0.00016966,2]
[405852379,1771361451508,-500.0,0.00016966,2]
[405852380,1771361451518,-500.0,0.00016966,2]
[405852381,1771361451527,-500.0,0.00016966,2]
[405852382,1771361451537,-151.0,0.00016966,2]
[405852383,1771361451547,-156.587,0.00016966,2]
[405852384,1771361451557,-162.380719,0.00016966,2]
[405852385,1771361451567,-159.19814613,0.00016966,2]
[405852386,1771361451576,-277.35679052,0.00016966,2]
[405852387,1771361451586,-2000.0,0.00017,2]
[405852388,1771361451595,-300.0,0.00017,2]
[405852389,1771361451605,-1000.0,0.00017039,2]
[405852390,1771361451614,-1000.0,0.00017047,2]
[405852391,1771361451624,-1213.35576391,0.00017059,2]
[405852392,1771361451633,-1471.37769193,0.00017096,2]
[405852393,1771361451642,-150.0,0.000171,2]
[405852394,1771361451657,-196837.22809,0.000171,2]
[405852395,1771361451669,-820.0,0.000171,2]
[405852396,1771361451680,-207.245138,0.000171,2]
[405852397,1771361451690,-1000.0,0.00017148,2]
[405852398,1771361451702,-350.0,0.00017149,2]
[405852399,1771361451713,-150.0,0.00017151,2]
[405852400,1771361451725,-662068.1675,0.00017159,2]
[405852401,1771361451735,-151.0,0.00017159,2]
[405852402,1771361451747,-151.0,0.00017159,2]
[405852403,1771361451757,-151.0,0.00017159,2]
[405852404,1771361451766,-151.0,0.00017159,2]
[405852405,1771361451778,-242.009051,0.00017159,2]
[405852406,1771361451788,-242.009051,0.00017159,2]
[405852407,1771361451798,-242.009051,0.00017159,2]
[405852408,1771361451808,-242.009051,0.00017159,2]
[405852409,1771361451819,-445.585732,0.00017159,2]
[405852410,1771361451828,-445.585732,0.00017159,2]
[405852411,1771361451838,-445.585732,0.00017159,2]
[405852412,1771361451849,-445.585732,0.00017159,2]
[405852413,1771361451858,-1000.0,0.00017159,2]
[405852414,1771361451867,-1000.0,0.00017159,2]
[405852415,1771361451877,-1000.0,0.00017159,2]
[405852416,1771361451887,-1000.0,0.00017159,2]
[405852417,1771361451900,-1000.0,0.00017159,2]
[405852418,1771361451909,-1000.0,0.00017159,2]
[405852419,1771361451919,-1000.0,0.00017159,2]
[405852420,1771361451928,-1038.507706,0.00017159,2]
[405852421,1771361451939,-1573.195363,0.00017159,2]
[405852422,1771361451948,-1573.195363,0.00017159,2]
[405852423,1771361451958,-1573.195363,0.00017159,2]
[405852424,1771361451967,-1573.195363,0.00017159,2]
[405852425,1771361451976,-151.0,0.00017159,2]
[405852426,1771361451986,-222.568912,0.00017159,2]
[405852427,1771361451995,-276.993442,0.00017159,2]
[405852428,1771361452005,-222.568912,0.00017159,2]
[405852429,1771361452015,-276.993442,0.00017159,2]
[405852430,1771361452025,-222.568912,0.00017159,2]
[405852431,1771361452036,-276.993442,0.00017159,2]
[405852432,1771361452046,-222.568912,0.00017159,2]
[405852433,1771361452055,-276.993442,0.00017159,2]
[405852434,1771361452066,-1740.67806815,0.0001716,2]
[405852435,1771361452077,-1000.0,0.00017171,2]
[405852436,1771361452087,-1000.0,0.00017176,2]
[405852437,1771361452096,-1471.37769193,0.00017178,2]
[405852438,1771361452106,-150.0,0.00017187,2]
[405852439,1771361452116,-1000.0,0.00017198,2]
[405852440,1771361452126,-1471.37769193,0.00017233,2]
[405852441,1771361452137,-1000.0,0.00017251,2]
[405852442,1771361452147,-1000.0,0.00017256,2]
[405852443,1771361452156,-1000.0,0.0001726,2]
[405852444,1771361452166,-1000.0,0.00017284,2]
[405852445,1771361452176,-1000.0,0.00017285,2]
[405852446,1771361452186,-1471.37769193,0.00017315,2]
[405852447,1771361452196,-1471.37769193,0.0001737,2]
[405852448,1771361452205,-350.0,0.00017384,2]
[405852449,1771361452214,-150.0,0.000174,2]
[405852450,1771361452223,-150.0,0.00017407,2]
[405852451,1771361452233,-1000.0,0.00017425,2]
[405852452,1771361452242,-1500.0,0.00017452,7]
[405852453,1771361452252,-1471.37769193,0.00017452,2]
[405852454,1771361452261,-150.0,0.00017466,2]
[405852455,1771361452271,-1000.0,0.00017469,2]
[405852456,1771361452280,-150.0,0.00017491,2]
[405852457,1771361452290,-150.0,0.00017496,2]
[405852458,1771361452300,-382.0,0.00017499,2]
[405852459,1771361452309,-2000.0,0.000175,2]
[405852460,1771361452318,-1000.0,0.00017501,2]
[405852461,1771361452328,-150.0,0.00017504,2]
[405852462,1771361452338,-1471.37769193,0.00017507,2]
[405852463,1771361452347,-287.61899177,0.00017514,2]
[405852464,1771361452356,-1000.0,0.00017534,2]
[405852465,1771361452366,-151.0,0.0001754,2]
[405852466,1771361452375,-151.0,0.0001754,2]
[405852467,1771361452385,-151.0,0.00017544,5]
[405852468,1771361452397,-1000.0,0.00017557,2]
[405852469,1771361452407,-150.0,0.00017568,2]
[405852470,1771361452416,-150.0,0.00017574,2]
[405852471,1771361452426,-1000.0,0.00017579,2]
[405852472,1771361452435,-1471.37769193,0.00017589,2]
[405852473,1771361452445,-11400.0,0.000176,6]
[405852474,1771361452454,-150.0,0.00017605,2]
[405852475,1771361452463,-150.0,0.0001761,2]
[405852476,1771361452473,-1000.0,0.00017617,2]
[405852477,1771361452482,-919.0,0.00017625,2]
[405852478,1771361452491,-10846.14923654,0.0001764,2]
[405852479,1771361452501,-151.0,0.0001764,2]
[405852480,1771361452510,-151.0,0.0001764,2]
[405852481,1771361452519,-158.396759,0.0001764,2]
[405852482,1771361452529,-1000.0,0.00017643,2]
[405852483,1771361452539,-1471.37769193,0.00017644,2]
[405852484,1771361452548,-1000.0,0.0001765,2]
[405852485,1771361452556,-150.0,0.0001767,2]
[405852486,1771361452566,-2835.0,0.0001768,2]
[405852487,1771361452575,-2835.0,0.0001768,2]
[405852488,1771361452585,-1000.0,0.0001768,2]
[405852489,1771361452596,-350.0,0.00017688,2]
[405852490,1771361452607,-1000.0,0.00017689,2]
[405852491,1771361452617,-150.0,0.0001769,2]
[405852492,1771361452627,-150.0,0.000177,2]
[405852493,1771361452637,-11400.0,0.000177,6]
[405852494,1771361452648,-259.0,0.00017722,2]
[405852495,1771361452657,-500.0,0.00017726,7]
[405852496,1771361452670,-1471.37769193,0.00017726,2]
[405852497,1771361452680,-150.0,0.00017734,2]
[405852498,1771361452690,-410.0,0.00017744,2]
[405852499,1771361452700,-150.0,0.00017755,2]
[405852500,1771361452711,-350.0,0.00017756,2]
[405852501,1771361452720,-350.0,0.00017776,2]
[405852502,1771361452730,-150.0,0.00017776,2]
[405852503,1771361452741,-641909.3329706,0.0001778,2]
[405852504,1771361452750,-1471.37769193,0.00017781,2]
[405852505,1771361452760,-808.0,0.00017785,2]
[405852506,1771361452769,-32850.4601,0.000178,2]
[405852507,1771361452779,-259.7041,0.000178,2]
[405852508,1771361452789,-1000.0,0.000178,2]
[405852509,1771361452798,-11400.0,0.000178,6]
[405852510,1771361452808,-444.64,0.00017808,2]
[405852511,1771361452817,-500.0,0.00017808,2]
[405852512,1771361452826,-500.0,0.00017808,2]
[405852513,1771361452835,-500.0,0.00017808,2]
[405852514,1771361452845,-500.0,0.00017808,2]
[405852515,1771361452855,-500.0,0.00017808,2]
[405852516,1771361452864,-500.0,0.00017808,2]
[405852517,1771361452874,-500.0,0.00017808,2]
[405852518,1771361452883,-500.0,0.00017808,2]
[405852519,1771361452892,-428.28311124,0.00017808,2]
[405852520,1771361452903,-500.0,0.00017808,2]
[405852521,1771361452913,-500.0,0.00017808,2]
[405852522,1771361452922,-500.0,0.00017808,2]
[405852523,1771361452932,-500.0,0.00017808,2]
[405852524,1771361452941,-500.0,0.00017808,2]
[405852525,1771361452950,-500.0,0.00017808,2]
[405852526,1771361452960,-500.0,0.00017808,2]
[405852527,1771361452969,-500.0,0.00017808,2]
[405852528,1771361452979,-500.0,0.00017808,2]
[405852529,1771361452989,-500.0,0.00017808,2]
[405852530,1771361452999,-500.0,0.00017808,2]
[405852531,1771361453009,-500.0,0.00017808,2]
[405852532,1771361453018,-500.0,0.00017808,2]
[405852533,1771361453028,-1000.0,0.00017808,2]
[405852534,1771361453037,-800.0,0.00017808,2]
[405852535,1771361453047,-311.844149,0.00017808,2]
[405852536,1771361453057,-250.0,0.00017808,20]
[405852537,1771361453066,-250.0,0.00017808,20]
[405852538,1771361453075,-250.0,0.00017808,20]
[405852539,1771361453084,-250.0,0.00017808,20]
[405852540,1771361453093,-311.844149,0.00017808,2]
[405852541,1771361453103,-250.0,0.00017808,20]
[405852542,1771361453112,-250.0,0.00017808,20]
[405852543,1771361453121,-250.0,0.00017808,20]
[405852544,1771361453131,-250.0,0.00017808,20]
[405852545,1771361453140,-250.0,0.00017808,20]
[405852546,1771361453151,-311.844149,0.00017808,2]
[405852547,1771361453160,-250.0,0.00017808,20]
[405852548,1771361453170,-250.0,0.00017808,20]
[405852549,1771361453180,-250.0,0.00017808,20]
[405852550,1771361453189,-250.0,0.00017808,20]
[405852551,1771361453198,-311.844149,0.00017808,2]
[405852552,1771361453208,-250.0,0.00017808,20]
[405852553,1771361453218,-250.0,0.00017808,20]
[405852554,1771361453227,-250.0,0.00017808,20]
[405852555,1771361453237,-250.0,0.00017808,20]
[405852556,1771361453246,-344.8526,0.00017808,20]
[405852557,1771361453256,-2000.0,0.0001782,2]
[405852558,1771361453265,-2000.0,0.0001782,2]
[405852559,1771361453282,-395.0,0.00017826,2]
[405852560,1771361453292,-808.0,0.00017826,2]
[405852561,1771361453302,-174.61919141,0.00017831,3]
[405852562,1771361453312,-181.08010149,0.00017831,3]
[405852563,1771361453322,-187.78006525,0.00017831,3]
[405852564,1771361453332,-194.72792766,0.00017831,3]
[405852565,1771361453427,-201.93286099,0.00017831,3]
[405852566,1771361453436,-209.40437684,0.00017831,3]
[405852567,1771361453446,-250.0,0.00017831,3]
[405852568,1771361453455,-250.0,0.00017831,3]
[405852569,1771361453465,-217.15233878,0.00017831,3]
[405852570,1771361453474,-250.0,0.00017831,3]
[405852571,1771361453483,-225.18697532,0.00017831,3]
[405852572,1771361453493,-250.0,0.00017831,3]
[405852573,1771361453502,-250.0,0.00017831,3]
[405852574,1771361453511,-233.51889341,0.00017831,3]
[405852575,1771361453520,-250.0,0.00017831,3]
[405852576,1771361453529,-250.0,0.00017831,3]
[405852577,1771361453538,-242.15909246,0.00017831,3]
[405852578,1771361453548,-250.0,0.00017831,3]
[405852579,1771361453557,-250.0,0.00017831,3]
[405852580,1771361453566,-251.11897888,0.00017831,3]
[405852581,1771361453575,-250.0,0.00017831,3]
[405852582,1771361453584,-260.4103811,0.00017831,3]
[405852583,1771361453593,-270.0455652,0.00017831,3]
[405852584,1771361453602,-250.0,0.00017831,3]
[405852585,1771361453611,-280.03725112,0.00017831,3]
[405852586,1771361453621,-250.0,0.00017831,3]
[405852587,1771361453630,-290.39862941,0.00017831,3]
[405852588,1771361453639,-250.0,0.00017831,3]
[405852589,1771361453648,-301.1433787,0.00017831,3]
[405852590,1771361453657,-250.0,0.00017831,3]
[405852591,1771361453667,-250.0,0.00017831,3]
[405852592,1771361453681,-200.0,0.00017831,3]
[405852593,1771361453690,-250.0,0.00017831,3]
[405852594,1771361453699,-200.0,0.00017831,3]
[405852595,1771361453709,-200.0,0.00017831,3]
[405852596,1771361453719,-250.0,0.00017831,3]
[405852597,1771361453728,-218.04759767,0.00017831,3]
[405852598,1771361453737,-250.0,0.00017831,3]
[405852599,1771361453748,-250.0,0.00017831,3]
[405852600,1771361453757,-250.0,0.00017831,3]
[405852601,1771361453767,-184.99591854,0.00017831,3]
[405852602,1771361453776,-250.0,0.00017831,3]
[405852603,1771361453785,-250.0,0.00017831,3]
[405852604,1771361453795,-500.0,0.00017831,3]
[405852605,1771361453804,-250.0,0.00017831,3]
[405852606,1771361453814,-500.0,0.00017831,3]
[405852607,1771361453824,-250.0,0.00017831,3]
[405852608,1771361453833,-500.0,0.00017831,3]
[405852609,1771361453843,-250.0,0.00017831,3]
[405852610,1771361453852,-250.0,0.00017831,3]
[405852611,1771361453862,-500.0,0.00017831,3]
[405852612,1771361453872,-299.40346672,0.00017831,3]
[405852613,1771361453881,-500.0,0.00017831,3]
[405852614,1771361453890,-250.0,0.00017831,3]
[405852615,1771361453901,-500.0,0.00017831,3]
[405852616,1771361453910,-500.0,0.00017831,3]
[405852617,1771361453919,-250.0,0.00017831,3]
[405852618,1771361453929,-500.0,0.00017831,3]
[405852619,1771361453938,-500.0,0.00017831,3]
[405852620,1771361453948,-250.0,0.00017831,3]
[405852621,1771361453959,-151.0,0.00017831,3]
[405852622,1771361453968,-250.0,0.00017831,3]
[405852623,1771361453977,-500.0,0.00017831,3]
[405852624,1771361453987,-151.0,0.00017831,3]
[405852625,1771361453996,-250.0,0.00017831,3]
[405852626,1771361454006,-500.0,0.00017831,3]
[405852627,1771361454016,-151.0,0.00017831,3]
[405852628,1771361454026,-250.0,0.00017831,3]
[405852629,1771361454035,-500.0,0.00017831,3]
[405852630,1771361454045,-151.0,0.00017831,3]
[405852631,1771361454055,-250.0,0.00017831,3]
[405852632,1771361454064,-500.0,0.00017831,3]
[405852633,1771361454074,-151.0,0.00017831,3]
[405852634,1771361454084,-500.0,0.00017831,3]
[405852635,1771361454093,-151.0,0.00017831,3]
[405852636,1771361454103,-250.0,0.00017831,3]
[405852637,1771361454113,-500.0,0.00017831,3]
[405852638,1771361454124,-151.0,0.00017831,3]
[405852639,1771361454133,-743.50770149,0.00017831,3]
[405852640,1771361454143,-431.2849758,0.00017831,3]
[405852641,1771361454154,-500.0,0.00017831,3]
[405852642,1771361454163,-250.0,0.00017831,3]
[405852643,1771361454173,-151.0,0.00017831,3]
[405852644,1771361454183,-771.01748645,0.00017831,3]
[405852645,1771361454192,-500.0,0.00017831,3]
[405852646,1771361454201,-250.0,0.00017831,3]
[405852647,1771361454211,-151.0,0.00017831,3]
[405852648,1771361454221,-799.54513345,0.00017831,3]
[405852649,1771361454231,-500.0,0.00017831,3]
[405852650,1771361454240,-250.0,0.00017831,3]
[405852651,1771361454252,-151.0,0.00017831,3]
[405852652,1771361454262,-829.12830338,0.00017831,3]
[405852653,1771361454271,-151.0,0.00017831,3]
[405852654,1771361454281,-171.52852621,0.00017831,3]
[405852655,1771361454291,-174.5920753,0.00017831,3]
[405852656,1771361454300,-500.0,0.00017831,3]
[405852657,1771361454310,-500.0,0.00017831,3]
[405852658,1771361454320,-500.0,0.00017831,3]
[405852659,1771361454330,-500.0,0.00017831,3]
[405852660,1771361454340,-151.0,0.00017831,3]
[405852661,1771361454351,-500.0,0.00017831,3]
[405852662,1771361454361,-151.0,0.00017831,3]
[405852663,1771361454370,-500.0,0.00017831,3]
[405852664,1771361454380,-151.0,0.00017831,3]
[405852665,1771361454391,-500.0,0.00017831,3]
[405852666,1771361454405,-151.0,0.00017831,3]
[405852667,1771361454416,-500.0,0.00017831,3]
[405852668,1771361454426,-151.0,0.00017831,3]
[405852669,1771361454436,-721.12765535,0.00017831,3]
[405852670,1771361454446,-500.0,0.00017831,3]
[405852671,1771361454457,-151.0,0.00017831,3]
[405852672,1771361454467,-747.8093786,0.00017831,3]
[405852673,1771361454476,-500.0,0.00017831,3]
[405852674,1771361454486,-151.0,0.00017831,3]
[405852675,1771361454496,-151.0,0.00017831,3]
[405852676,1771361454506,-500.0,0.00017831,3]
[405852677,1771361454516,-151.0,0.00017831,3]
[405852678,1771361454525,-151.0,0.00017831,3]
[405852679,1771361454535,-250.0,0.00017831,3]
[405852680,1771361454544,-151.0,0.00017831,3]
[405852681,1771361454555,-250.0,0.00017831,3]
[405852682,1771361454565,-151.0,0.00017831,3]
[405852683,1771361454575,-250.0,0.00017831,3]
[405852684,1771361454585,-151.0,0.00017831,3]
[405852685,1771361454595,-775.47832561,0.00017831,3]
[405852686,1771361454604,-250.0,0.00017831,3]
[405852687,1771361454615,-151.0,0.00017831,3]
[405852688,1771361454624,-804.17102365,0.00017831,3]
[405852689,1771361454634,-250.0,0.00017831,3]
[405852690,1771361454644,-151.0,0.00017831,3]
[405852691,1771361454656,-833.92535153,0.00017831,3]
[405852692,1771361454665,-250.0,0.00017831,3]
[405852693,1771361454677,-864.78058953,0.00017831,3]
[405852694,1771361454686,-200.0,0.00017831,3]
[405852695,1771361454695,-250.0,0.00017831,3]
[405852696,1771361454705,-896.77747135,0.00017831,3]
[405852697,1771361454716,-200.0,0.00017831,3]
[405852698,1771361454726,-250.0,0.00017831,3]
[405852699,1771361454736,-929.95823779,0.00017831,3]
[405852700,1771361454748,-250.0,0.00017831,3]